bitfinex-derivatives/quotes_BNBF0:USTF0_20250424
["timestamp","ask_amount","ask_price","bid_price","bid_amount"]
[1745506336633,0.27138799,601.09,599.65,3.371]
[1745506336931,0.27138799,601.08,599.65,3.371]
[1745506337130,0.27138799,601.07,599.65,3.371]
[1745506337532,0.27138799,601.06,599.65,3.371]
[1745506337740,0.27138799,601.05,599.65,3.371]
[1745506338040,0.27138799,601.04,599.65,3.371]
[1745506338242,0.27138799,601.03,599.65,3.371]
[1745506338439,0.27138799,601.02,599.65,3.371]
[1745506338640,0.27138799,601.01,599.65,3.371]
[1745506338839,0.27138799,601.0,599.65,3.371]
[1745506339043,0.27138799,600.99,599.65,3.371]
[1745506339245,0.27138799,600.98,599.65,3.371]
[1745506339442,0.27138799,600.97,599.65,3.371]
[1745506339643,0.27138799,600.96,599.65,3.371]
[1745506339943,0.27138799,600.95,599.65,3.371]
[1745506340144,0.27138799,601.02,599.65,3.371]
[1745506340347,0.27138799,601.01,599.65,3.371]
[1745506340541,0.27138799,601.02,599.65,3.371]
[1745506340741,0.27138799,601.01,599.65,3.371]
[1745506340945,0.28996859,601.03,599.65,3.371]
[1745506340946,0.27138799,601.02,599.65,3.371]
[1745506341241,0.28996859,601.03,599.65,3.371]
[1745506341242,0.27138799,601.01,599.65,3.371]
[1745506341442,1.26968893,601.23,599.65,3.371]
[1745506341644,0.27148314,601.0,599.65,3.371]
[1745506341951,0.27148314,600.99,599.65,3.371]
[1745506342141,0.27148314,601.22,599.65,3.371]
[1745506342346,0.27148314,601.21,599.65,3.371]
[1745506342549,0.27148314,601.2,599.65,3.371]
[1745506342845,0.27148314,601.19,599.65,3.371]
[1745506343047,0.27148314,601.18,599.65,3.371]
[1745506343246,0.27148314,601.17,599.65,3.371]
[1745506343442,0.27148314,601.16,599.65,3.371]
[1745506343640,0.27148314,601.15,599.65,3.371]
[1745506343846,0.27148314,601.14,599.65,3.371]
[1745506344043,0.27148314,601.13,599.65,3.371]
[1745506344254,0.27148314,601.12,599.65,3.371]
[1745506344549,0.28992631,601.12,599.65,3.371]
[1745506344748,0.27141906,601.11,599.65,3.371]
[1745506344944,0.27141906,601.1,599.65,3.371]
[1745506345145,0.27141906,601.09,599.65,3.371]
[1745506345349,0.27141906,601.08,599.65,3.371]
[1745506345543,0.27141906,601.07,599.65,3.371]
[1745506345744,0.27141906,601.06,599.65,3.371]
[1745506345950,0.27141906,601.05,599.65,3.371]
[1745506346149,0.27141906,601.04,599.65,3.371]
[1745506346347,0.27141906,601.03,599.65,3.371]
[1745506346558,0.27141906,601.02,599.65,3.371]
[1745506346851,0.27141906,601.01,599.65,3.371]
[1745506347052,0.27141906,601.0,599.65,3.371]
[1745506347245,0.27141906,600.99,599.65,3.371]
[1745506347450,0.27141906,600.98,599.65,3.371]
[1745506347645,0.27141906,600.97,599.65,3.371]
[1745506347848,1.26968893,601.34,599.65,3.371]
[1745506347849,0.27141906,600.96,599.65,3.371]
[1745506348145,0.27141906,600.95,599.65,3.371]
[1745506348351,0.27141906,600.94,599.65,3.371]
[1745506348650,0.27141906,600.93,599.65,3.371]
[1745506348849,0.27141906,600.92,599.65,3.371]
[1745506349048,0.27141906,600.91,599.65,3.371]
[1745506349249,0.28994684,600.98,599.65,3.371]
[1745506349448,0.27142518,600.97,599.65,3.371]
[1745506349648,0.27142518,600.96,599.65,3.371]
[1745506349847,0.27142518,600.95,599.65,3.371]
[1745506350449,0.27142518,600.94,599.65,3.371]
[1745506350654,0.27142518,600.93,599.65,3.371]
[1745506350856,0.27142518,600.92,599.65,3.371]
[1745506351051,0.27142518,600.91,599.65,3.371]
[1745506351251,0.27142518,600.9,599.65,3.371]
[1745506351555,0.27142518,600.89,599.65,3.371]
[1745506351757,0.27142518,600.88,599.65,3.371]
[1745506352058,0.27142518,600.87,599.65,3.371]
[1745506352256,0.27142518,600.86,599.65,3.371]
[1745506352557,0.27142518,600.85,599.65,3.371]
[1745506352758,0.27142518,600.84,599.65,3.371]
[1745506353058,0.27142518,600.83,599.65,3.371]
[1745506353252,0.27142518,600.82,599.65,3.371]
[1745506353457,0.27142518,600.81,599.65,3.371]
[1745506353658,0.27142518,600.96,599.65,3.371]
[1745506353959,1.26968893,600.97,599.65,3.371]
[1745506354158,0.27149467,600.96,599.65,3.371]
[1745506354454,0.27149467,600.95,599.65,3.371]
[1745506354758,0.27149467,600.94,599.65,3.371]
[1745506354959,0.27149467,600.93,599.65,3.371]
[1745506355159,0.27149467,600.92,599.65,3.371]
[1745506355358,0.27149467,600.91,599.65,3.371]
[1745506355560,0.5615273,600.91,599.65,3.371]
[1745506355862,0.27149467,600.9,599.65,3.371]
[1745506356059,0.27149467,600.89,599.65,3.371]
[1745506356259,0.27149467,600.88,599.65,3.371]
[1745506356556,0.27149467,600.87,599.65,3.371]
[1745506356758,0.27149467,600.86,599.65,3.371]
[1745506357061,0.29003263,600.91,599.65,3.371]
[1745506357361,0.27150067,600.9,599.65,3.371]
[1745506357659,0.27150067,600.89,599.65,3.371]
[1745506357860,0.27150067,600.88,599.65,3.371]
[1745506358060,0.27150067,600.87,599.65,3.371]
[1745506358261,0.27150067,600.86,599.65,3.371]
[1745506358457,0.27150067,600.85,599.65,3.371]
[1745506358760,0.27150067,600.84,599.65,3.371]
[1745506358959,0.29003263,600.91,599.65,3.371]
[1745506358960,0.27150067,600.83,599.65,3.371]
[1745506359161,0.27150067,600.82,599.65,3.371]
[1745506359362,0.27150067,600.81,599.65,3.371]
[1745506359661,0.27150067,600.8,599.65,3.371]
[1745506359857,0.27150067,600.79,599.65,3.371]
[1745506360260,1.26968893,600.99,599.65,3.371]
[1745506360261,0.27150067,600.78,599.65,3.371]
[1745506360455,0.27150067,600.77,599.65,3.371]
[1745506360657,1.26968893,600.99,599.65,3.371]
[1745506360658,0.27150067,600.76,599.65,3.371]
[1745506360956,0.27150067,600.75,599.65,3.371]
[1745506361158,1.26968893,600.99,599.65,3.371]
[1745506361159,0.27150067,600.74,599.65,3.371]
[1745506361456,0.27150067,600.73,599.65,3.371]
[1745506361658,0.27150067,600.98,599.65,3.371]
[1745506361857,1.26968893,600.89,599.65,3.371]
[1745506362055,0.27150067,600.88,599.65,3.371]
[1745506362262,0.27150067,600.87,599.65,3.371]
[1745506362563,0.27150067,600.86,599.65,3.371]
[1745506362759,0.27150067,600.85,599.65,3.371]
[1745506362960,0.27150067,600.84,599.65,3.371]
[1745506363161,0.27150067,600.83,599.65,3.371]
[1745506363362,0.27150067,600.82,599.65,3.371]
[1745506363557,0.27150067,600.81,599.65,3.371]
[1745506363757,0.27150067,600.86,599.65,3.371]
[1745506363960,0.27150067,600.85,599.65,3.371]
[1745506364261,0.27150067,600.84,599.65,3.371]
[1745506364459,0.27150067,600.83,599.65,3.371]
[1745506364659,0.27150067,600.82,599.65,3.371]
[1745506364857,0.27150067,600.81,599.65,3.371]
[1745506365062,0.27150067,600.8,599.65,3.371]
[1745506365262,0.27150067,600.79,599.65,3.371]
[1745506365464,0.27150067,600.78,599.65,3.371]
[1745506365763,0.27150067,600.77,599.65,3.371]
[1745506365958,0.27150067,600.76,599.65,3.371]
[1745506366165,0.29003988,600.87,599.65,3.371]
[1745506366666,0.27155266,600.86,599.65,3.371]
[1745506367868,0.27155266,600.85,599.65,3.371]
[1745506368066,0.29003988,600.87,599.65,3.371]
[1745506368361,0.27156746,600.86,599.65,3.371]
[1745506368559,0.27156746,600.85,599.65,3.371]
[1745506368760,0.27156746,600.84,599.65,3.371]
[1745506368963,0.27156746,600.83,599.65,3.371]
[1745506369163,0.27156746,600.82,599.65,3.371]
[1745506369361,0.27156746,600.81,599.65,3.371]
[1745506369564,0.27156746,600.8,599.65,3.371]
[1745506369764,0.27156746,600.79,599.65,3.371]
[1745506369964,0.27156746,600.78,599.65,3.371]
[1745506370165,0.27156746,600.77,599.65,3.371]
[1745506370366,0.27156746,600.76,599.65,3.371]
[1745506370566,0.27156746,600.75,599.65,3.371]
[1745506370862,0.27156746,600.74,599.65,3.371]
[1745506371066,0.27156746,600.73,599.65,3.371]
[1745506371266,0.27165444,600.72,599.65,3.371]
[1745506371467,0.27165444,600.71,599.65,3.371]
[1745506371763,0.27165444,600.7,599.65,3.371]
[1745506371967,0.27165444,600.69,599.65,3.371]
[1745506372162,0.27165444,600.68,599.65,3.371]
[1745506372365,0.27165444,600.67,599.65,3.371]
[1745506372662,0.29012572,600.71,599.65,3.371]
[1745506372865,0.2716511,600.7,599.65,3.371]
[1745506373064,0.2716511,600.69,599.65,3.371]
[1745506373261,0.2716511,600.68,599.65,3.371]
[1745506373465,0.2716511,600.67,599.65,3.371]
[1745506373667,0.2716511,600.66,599.65,3.371]
[1745506373864,0.29012572,600.71,599.65,3.371]
[1745506374068,0.27165232,600.7,599.65,3.371]
[1745506374272,0.27165232,600.69,599.65,3.371]
[1745506374466,0.27165232,600.68,599.65,3.371]
[1745506374665,0.29012572,600.69,599.65,3.371]
[1745506374966,0.27165232,600.68,599.65,3.371]
[1745506376070,0.27165232,600.67,599.65,3.371]
[1745506376267,0.27165232,600.66,599.65,3.371]
[1745506376465,0.27165232,600.65,599.65,3.371]
[1745506376669,0.27165232,600.64,599.65,3.371]
[1745506376870,0.27165232,600.63,599.65,3.371]
[1745506377066,0.27165232,600.68,599.65,3.371]
[1745506377264,0.27165232,600.62,599.65,3.371]
[1745506377470,0.27165232,600.61,599.65,3.371]
[1745506377771,0.27165232,600.6,599.65,3.371]
[1745506377971,0.27165232,600.66,599.65,3.371]
[1745506378971,0.2900967,600.67,599.65,3.371]
[1745506379165,0.27156914,600.66,599.65,3.371]
[1745506380572,0.2900423,600.65,599.65,3.371]
[1745506381472,0.27160765,600.64,599.65,3.371]
[1745506381772,0.27160765,600.63,599.65,3.371]
[1745506381968,0.27161189,600.63,599.65,3.371]
[1745506382169,0.27161189,600.62,599.65,3.371]
[1745506382369,0.27161189,600.61,599.65,3.371]
[1745506382572,0.27161189,600.6,599.65,3.371]
[1745506382871,0.27161189,600.59,599.65,3.371]
[1745506383071,0.27161189,600.58,599.65,3.371]
[1745506383273,1.26968893,601.2,599.65,3.371]
[1745506383467,0.27161755,601.19,599.65,3.371]
[1745506383666,1.26968893,601.2,599.65,3.371]
[1745506383667,0.29006526,600.57,599.65,3.371]
[1745506383866,0.27161755,600.56,599.65,3.371]
[1745506384072,0.27161755,600.55,599.65,3.371]
[1745506384274,2.16023464,601.65,599.65,3.371]
[1745506384275,0.27161755,600.54,599.65,3.371]
[1745506384474,0.27161755,600.53,599.65,3.371]
[1745506384670,0.27161755,600.52,599.65,3.371]
[1745506384868,0.27161755,600.51,599.65,3.371]
[1745506385168,0.27161755,600.5,599.65,3.371]
[1745506385374,0.27161755,600.49,599.65,3.371]
[1745506385572,0.27161755,600.48,599.65,3.371]
[1745506385772,0.27161755,600.47,599.65,3.371]
[1745506385972,0.27161755,600.46,599.65,3.371]
[1745506386166,0.27161755,600.45,599.65,3.371]
[1745506386367,0.27161755,600.48,599.65,3.371]
[1745506386570,0.29012088,600.44,599.65,3.371]
[1745506386773,0.27161755,600.43,599.65,3.371]
[1745506387173,0.27161755,600.43,599.65,0.698]
[1745506388075,0.29012088,600.44,599.65,0.698]
[1745506388275,0.27163187,600.43,599.65,0.698]
[1745506389473,0.27163187,600.74,599.65,0.698]
[1745506389674,0.29011967,600.42,599.65,0.698]
[1745506389874,0.27161583,600.41,599.65,0.698]
[1745506390079,0.27161583,600.74,599.65,0.698]
[1745506390277,0.27161583,600.73,599.65,0.698]
[1745506390576,0.27161583,600.72,599.65,1.569]
[1745506390772,0.27161583,600.71,599.65,1.569]
[1745506390972,0.27161583,600.7,599.65,1.569]
[1745506391176,1.26968893,600.75,599.65,1.569]
[1745506391378,0.27161907,600.74,599.65,1.569]
[1745506391577,0.27161907,600.73,599.65,1.569]
[1745506391778,0.27161907,600.72,599.65,1.569]
[1745506392078,0.27161907,600.71,599.65,1.569]
[1745506392278,0.27161907,600.7,599.65,1.569]
[1745506392481,0.27161907,600.69,599.65,1.569]
[1745506392676,0.29011967,600.74,599.65,1.569]
[1745506392876,0.27162063,600.73,599.65,1.569]
[1745506393079,0.27162063,600.72,599.65,1.569]
[1745506393281,0.27162063,600.71,599.65,1.569]
[1745506393481,0.27162063,600.7,599.65,1.569]
[1745506393679,0.27162063,600.69,599.65,1.569]
[1745506393980,0.27162063,600.68,599.65,1.569]
[1745506394182,0.27162063,600.67,599.65,1.569]
[1745506394376,0.27162063,600.66,599.65,1.569]
[1745506394579,0.27162063,600.65,599.65,1.569]
[1745506394876,0.27162063,600.64,599.65,1.569]
[1745506395081,0.27162063,600.63,599.65,1.569]
[1745506395281,0.27162063,600.62,599.65,1.569]
[1745506395481,0.27162063,600.61,599.65,1.569]
[1745506395680,0.27162063,600.6,599.65,1.569]
[1745506395981,0.27162063,600.59,599.65,1.569]
[1745506396181,0.27162063,600.58,599.65,1.569]
[1745506396378,0.27162063,600.57,599.65,1.569]
[1745506396580,0.27162063,600.56,599.65,1.569]
[1745506396877,0.27162063,600.55,599.65,1.569]
[1745506397186,1.26968893,600.67,599.65,1.569]
[1745506397686,1.26968893,600.64,599.65,1.569]
[1745506397987,0.2716176,600.63,599.65,1.569]
[1745506398682,0.56174816,600.62,599.65,1.569]
[1745506398885,0.2716176,600.61,599.65,1.569]
[1745506399085,0.2716176,600.6,599.65,1.569]
[1745506399286,0.27160801,600.59,599.65,1.569]
[1745506399488,0.27160801,600.58,599.65,1.569]
[1745506399788,0.27160801,600.57,599.65,1.569]
[1745506400087,0.27160801,600.56,599.65,1.569]
[1745506400286,0.27160801,600.55,599.65,1.569]
[1745506400488,1.26968893,600.44,599.65,1.569]
[1745506400787,0.27160801,600.43,599.65,1.569]
[1745506401082,0.27160801,600.42,599.65,1.569]
[1745506401286,0.27160801,600.41,599.65,1.569]
[1745506401486,0.27160801,600.4,599.65,1.569]
[1745506401681,0.27160801,600.39,599.65,1.569]
[1745506401883,0.27160801,600.38,599.65,1.569]
[1745506402086,0.27160801,600.37,599.65,0.871]
[1745506402289,0.27160801,600.36,599.65,0.871]
[1745506402486,0.27160801,600.35,599.65,0.871]
[1745506402787,0.29015475,600.41,599.65,0.871]
[1745506402788,1.26968893,600.3,599.65,0.871]
[1745506402986,0.27160801,600.29,599.65,0.871]
[1745506403188,0.27160801,600.28,599.65,0.871]
[1745506403382,0.27160801,600.27,599.65,0.871]
[1745506403585,0.27160801,600.26,599.65,0.871]
[1745506403786,0.27160801,600.25,599.65,0.871]
[1745506404083,0.27160801,600.24,599.65,0.871]
[1745506404286,0.27160801,600.29,599.65,0.871]
[1745506404483,0.27160801,600.28,599.65,0.871]
[1745506404688,0.27160801,600.29,599.65,0.871]
[1745506404887,0.27160801,600.28,599.65,0.871]
[1745506405189,0.27160801,600.29,599.65,0.871]
[1745506405388,0.27160801,600.28,599.65,0.871]
[1745506405587,0.27160801,600.29,599.65,0.871]
[1745506405788,0.27160801,600.28,599.65,0.871]
[1745506405983,0.27160801,600.27,599.65,0.871]
[1745506406187,1.26968893,600.3,599.65,0.871]
[1745506406188,0.27160801,600.29,599.65,0.871]
[1745506406387,0.27160801,600.28,599.65,0.871]
[1745506406585,0.27160801,600.29,599.65,0.871]
[1745506406785,0.27160801,600.28,599.65,0.871]
[1745506406985,0.27160801,600.29,599.65,0.871]
[1745506407190,0.27160801,600.28,599.65,0.871]
[1745506407391,0.27160801,600.29,599.65,0.871]
[1745506407590,0.29017168,600.28,599.65,0.871]
[1745506407787,0.27160801,600.27,599.65,0.871]
[1745506409995,0.29017168,600.28,599.65,0.871]
[1745506410195,0.27162002,600.27,599.65,0.871]
[1745506413499,0.27162002,600.26,599.65,0.871]
[1745506413693,1.26968893,600.26,599.65,0.871]
[1745506413896,0.27162002,600.25,599.65,0.871]
[1745506414696,1.26968893,600.26,599.65,0.871]
[1745506414895,0.27161886,600.25,599.65,0.871]
[1745506417801,0.27161949,600.24,599.65,0.871]
[1745506418001,0.27161949,600.27,599.65,0.871]
[1745506419397,0.27161949,600.26,599.65,0.871]
[1745506419597,0.27161949,600.28,599.65,0.871]
[1745506419799,0.27161949,600.27,599.65,0.871]
[1745506419995,0.27161949,600.28,599.65,0.871]
[1745506420701,1.26968893,600.29,599.65,0.871]
[1745506420897,0.27162032,600.28,599.65,0.871]
[1745506422204,1.26968893,600.52,599.65,0.871]
[1745506422398,0.27160492,600.51,599.65,0.871]
[1745506422598,0.27160492,600.5,599.65,1.524]
[1745506422801,0.27160492,600.49,599.65,1.524]
[1745506423004,0.27160492,600.51,599.65,1.524]
[1745506423303,0.27160492,600.5,599.65,2.449]
[1745506423504,0.27160492,600.49,599.65,2.449]
[1745506423702,0.27160492,600.51,599.65,2.449]
[1745506423903,0.27160492,600.5,599.65,2.449]
[1745506424204,0.27160492,600.49,599.65,3.486]
[1745506424404,0.27160492,600.51,599.65,3.486]
[1745506424604,0.27160492,600.5,599.65,3.486]
[1745506424899,0.27160492,600.49,599.65,3.486]
[1745506425105,0.27160492,600.48,599.65,3.486]
[1745506425299,0.27160492,600.47,599.65,3.486]
[1745506425800,0.27160492,600.46,599.65,0.35808138]
[1745506425999,0.27160492,600.45,599.65,0.35808138]
[1745506426306,0.27160492,600.44,599.65,0.02233156]
[1745506426506,0.27160492,600.43,598.8,0.29018015]
[1745506426702,0.27160492,600.42,598.81,1.86065297]
[1745506426901,0.27160492,600.41,598.82,1.86065297]
[1745506427101,0.27160492,600.4,598.83,1.86065297]
[1745506427304,0.27160492,600.39,598.84,1.86065297]
[1745506427501,0.27160492,600.46,598.85,1.55414296]
[1745506427701,1.26968893,600.15,598.86,1.88775998]
[1745506427901,0.27160492,600.14,598.87,1.88775998]
[1745506428104,0.27160492,600.14,598.88,1.55414296]
[1745506428304,0.27160492,600.14,598.89,1.55414296]
[1745506428601,0.27160492,600.14,598.87,0.33361702]
[1745506428602,1.26968893,600.15,598.9,1.55414296]
[1745506428805,1.26968893,600.15,598.91,1.55414296]
[1745506429007,1.26968893,600.15,598.92,1.88775998]
[1745506429305,1.26968893,600.15,598.93,1.55414296]
[1745506429506,0.29018015,600.47,598.94,1.88775998]
[1745506429807,0.27161037,600.46,598.95,1.55414296]
[1745506430006,0.27161037,600.46,598.96,1.55414296]
[1745506430306,0.27161037,600.46,598.97,0.92656096]
[1745506430500,0.27161037,600.46,598.98,1.56267125]
[1745506430704,0.27161037,600.46,598.99,1.89628827]
[1745506431004,0.27161037,600.46,599.0,1.89628827]
[1745506431202,0.27161037,600.46,599.01,1.56267125]
[1745506431505,0.27161037,600.46,599.02,0.92656096]
[1745506431707,0.29014507,600.45,599.03,0.92656096]
[1745506431906,0.27161037,600.44,599.04,0.92656096]
[1745506432103,0.27161037,600.44,599.05,0.92656096]
[1745506432408,0.27161037,600.44,599.06,0.92609647]
[1745506432608,0.27161037,600.44,599.07,0.92609647]
[1745506433004,0.27161037,600.44,599.08,0.33361702]
[1745506433209,0.27161037,600.44,599.09,0.92609647]
[1745506433709,0.27161037,600.44,599.1,0.33361702]
[1745506434105,0.27161037,600.44,599.11,0.33361702]
[1745506434511,0.27161037,600.43,599.11,0.33361702]
[1745506434713,1.26968893,601.02,599.12,0.33361702]
[1745506434907,0.27161037,601.01,599.12,0.33361702]
[1745506435111,0.27161037,601.0,599.12,0.33361702]
[1745506435311,0.27161037,600.99,598.92,0.2902334]
[1745506435510,0.27161037,600.99,598.93,1.56223115]
[1745506435709,0.27161037,600.98,598.94,1.56223115]
[1745506435912,0.27161037,600.97,598.95,1.56223115]
[1745506436112,0.27161037,600.96,598.96,1.56223115]
[1745506436310,0.27161037,600.95,598.97,1.56223115]
[1745506436514,1.26968893,601.02,598.98,1.56223115]
[1745506436713,0.29015354,600.95,598.99,1.89580213]
[1745506437013,0.27160373,600.94,599.0,1.56223115]
[1745506437215,1.26968893,600.55,599.01,1.89580213]
[1745506437515,1.26968893,600.55,598.48,1.05074166]
[1745506437516,0.27160373,600.54,599.02,1.89580213]
[1745506437815,0.27160373,600.53,599.03,0.92620606]
[1745506438214,0.27160373,600.53,599.04,0.33357098]
[1745506438512,0.27160373,600.53,599.05,0.92620606]
[1745506438716,0.27160373,600.53,599.06,0.92620606]
[1745506438908,0.27160373,600.53,599.07,0.92620606]
[1745506439112,0.27160373,600.53,599.08,0.92620606]
[1745506439316,0.27160373,600.53,599.06,0.33357098]
[1745506439516,0.27160373,600.53,599.07,1.22676218]
[1745506439810,0.27160253,600.52,599.08,1.52932312]
[1745506440011,0.27160253,600.53,599.09,0.8931912]
[1745506440211,0.27160253,600.53,599.1,0.8931912]
[1745506440409,0.27160253,600.53,599.11,1.52918235]
[1745506440617,0.27160253,600.59,599.12,1.52918235]
[1745506440809,0.27160253,600.59,599.11,0.33357098]
[1745506440810,0.27160253,600.58,599.13,1.52918235]
[1745506441008,0.27160253,600.59,599.14,1.86275333]
[1745506441207,0.27160253,600.58,599.15,1.52918235]
[1745506441413,0.27160253,600.58,599.0,0.29017531]
[1745506441414,0.27160253,600.59,599.16,1.86275333]
[1745506441714,0.27160253,600.58,599.17,1.52918235]
[1745506441912,0.27160253,600.59,599.18,1.86259925]
[1745506442110,0.27160253,600.58,599.19,0.8931912]
[1745506442315,0.27150991,600.57,599.2,1.86229239]
[1745506442514,2.16023464,601.32,599.2,1.86229239]
[1745506442515,0.27150991,600.56,599.21,1.52869994]
[1745506442715,0.27150991,600.55,599.22,1.22571504]
[1745506442914,0.27150991,600.84,599.22,0.33357098]
[1745506443215,0.27150991,600.83,599.22,0.33357098]
[1745506443415,0.27150991,600.84,599.22,0.33357098]
[1745506443608,0.56165014,600.83,599.22,0.33357098]
[1745506443812,0.56165014,600.83,599.23,0.9687635]
[1745506444010,0.27150991,600.82,599.24,0.63513567]
[1745506444309,0.27150991,600.82,599.25,0.33357098]
[1745506444910,0.27150991,600.82,599.26,0.33357098]
[1745506445216,0.27150991,600.82,599.27,0.33357098]
[1745506445409,0.27150991,600.82,599.28,0.33357098]
[1745506446214,0.27150991,600.82,599.29,0.33357098]
[1745506446617,0.27150991,601.18,599.11,0.2900701]
[1745506446816,0.29007614,600.81,599.12,0.63433989]
[1745506447019,0.27150991,600.8,599.13,0.63433989]
[1745506447311,0.27150991,600.79,599.13,0.63433989]
[1745506447612,0.27150991,600.78,599.13,0.63433989]
[1745506447816,0.27150991,600.77,599.14,0.33343849]
[1745506448015,0.27150991,601.18,599.15,0.63433989]
[1745506448217,0.27150991,601.17,599.14,0.33343849]
[1745506448415,0.27150991,601.18,599.12,0.33343849]
[1745506448612,0.29007373,601.16,599.13,0.63404926]
[1745506448815,0.27150991,601.15,599.14,0.63404926]
[1745506449014,0.27150991,601.15,599.15,0.63404926]
[1745506449215,0.27150991,601.15,599.12,0.33343849]
[1745506449414,0.27150991,601.15,599.16,0.33343849]
[1745506449614,0.56158122,601.14,599.16,0.33343849]
[1745506449814,0.27150991,601.13,599.16,0.33343849]
[1745506450010,0.27150991,601.13,598.71,0.961]
[1745506450011,0.27150991,601.13,598.72,0.33343849]
[1745506450216,0.27150991,601.13,598.73,0.92701955]
[1745506450416,0.27150991,601.13,598.74,0.92701955]
[1745506450716,0.27150991,601.13,598.75,1.26045804]
[1745506450911,0.27150991,601.13,598.76,0.92701955]
[1745506451118,0.27150991,601.13,598.77,0.92701955]
[1745506451316,0.27150991,601.13,598.78,0.92701955]
[1745506451513,0.29007131,601.14,598.79,0.62066734]
[1745506451718,0.27149176,601.13,598.79,0.62066734]
[1745506451918,0.27149176,601.13,598.8,0.62086064]
[1745506452115,0.27149176,601.13,598.81,0.95429913]
[1745506452313,0.27149176,601.13,598.82,0.62086064]
[1745506452613,0.27149176,601.12,598.83,1.51886064]
[1745506452818,0.27149176,601.11,598.84,0.62086064]
[1745506453017,0.29004472,601.12,598.85,0.62086064]
[1745506453219,0.27149169,601.11,598.86,0.62086064]
[1745506453415,0.27149169,601.11,598.87,0.62086064]
[1745506453615,0.27149169,601.11,598.88,0.62086064]
[1745506453812,0.27149169,601.11,598.89,0.62063165]
[1745506454017,0.27149169,601.11,598.9,0.62063165]
[1745506454217,0.27149169,601.11,598.91,0.62063165]
[1745506454521,0.27149169,601.11,598.92,0.95407014]
[1745506454717,0.271493,601.1,598.93,0.62063165]
[1745506454918,0.271493,601.11,598.94,0.62063165]
[1745506455119,0.271493,601.1,598.95,0.62063165]
[1745506455314,0.271493,601.11,598.96,0.62063165]
[1745506455619,0.271493,601.1,598.97,0.95407014]
[1745506455820,0.271493,601.09,598.98,0.62063165]
[1745506456015,0.271493,601.08,598.98,0.62063165]
[1745506456213,0.27152341,601.07,598.99,0.33343849]
[1745506456419,0.27152341,601.06,599.0,0.62063165]
[1745506456624,0.27152341,601.05,599.0,0.62063165]
[1745506456921,0.27152341,601.04,599.01,0.33343849]
[1745506457119,0.27152341,601.03,599.02,0.62063165]
[1745506457316,0.27152341,601.02,599.03,0.95407014]
[1745506457523,0.27152341,601.01,599.04,0.62063165]
[1745506457722,0.27152341,601.0,599.05,0.62063165]
[1745506457916,0.27152341,600.99,599.05,0.33343849]
[1745506458120,0.27152341,600.98,599.05,0.33343849]
[1745506458317,0.27152341,600.98,598.85,0.33343849]
[1745506458523,0.27152341,600.97,598.86,0.92684788]
[1745506458726,0.27152341,600.96,598.92,0.2900568]
[1745506458922,0.27152341,600.95,598.93,0.62046741]
[1745506459119,0.27152341,600.94,598.94,0.33343849]
[1745506459317,0.27152341,600.93,598.95,0.62046741]
[1745506459523,0.27152341,600.92,598.96,0.33343849]
[1745506459720,0.27152341,600.91,598.97,0.62046741]
[1745506459920,0.27152341,600.9,598.97,0.62046741]
[1745506460121,0.27152341,600.89,598.97,0.62046741]
[1745506460322,0.27152341,600.88,598.97,0.62046741]
[1745506460523,0.27152341,600.87,598.98,0.33343849]
[1745506460728,0.2900568,600.97,598.99,0.62046741]
[1745506460924,0.27153073,600.96,599.0,0.33343849]
[1745506461123,0.27153073,600.95,599.01,0.62046741]
[1745506461324,1.26968893,601.18,599.02,0.33343849]
[1745506461325,0.27153073,600.94,599.02,0.33343849]
[1745506461624,0.27153073,600.93,599.02,0.33343849]
[1745506461823,0.27153073,600.92,599.02,0.33343849]
[1745506462021,0.27153073,600.91,599.02,0.33343849]
[1745506462219,0.29010879,600.93,599.02,0.33343849]
[1745506462524,0.27152872,600.92,599.02,0.33343849]
[1745506462725,0.27152872,600.91,598.97,0.33343849]
[1745506462926,0.27152872,600.9,598.98,0.62070044]
[1745506463121,0.27152872,600.89,598.99,0.95413893]
[1745506463321,0.27152872,600.88,599.0,0.62070297]